Cogmind - Beta 15 @@@ ROGUE MODE // 2025.05.12 @ 18:10:34 Player: amhuman Result: Self-destructed Performance ------------- Evolutions (6) 3000 Regions Visited (15) 3000 Robots Destroyed (93) 465 Value Destroyed (4197) 4197 Prototype IDs (19) 380 Alien Tech Used (0) 0 Bonus (3634) 3634 TOTAL SCORE: 14676 Bonus ------- High Alert Combat Kills 235 Follower Combat Kills 1799 Network Hubs Disabled 200 Registered with UFD 300 Met Optimus in HQ 500 Built Enhanced Grunts 300 A7 Reached Mainframe 300 Cogmind --------- Core Integrity 765/1150 Matter 280/300 Energy 340/340 System Corruption 7% Temperature Cool (39) Movement Core (1950) Ox38 Location -4/Factory Parts ------- > --- POWER (1) -------- Heavy Antimatter Reactor > --- PROPULSION (6) --- (None) > --- UTILITY (8) ------ Advanced Heat Sink (fused) Huge Storage Unit Advanced Sensor Array Advanced Signal Interpreter Centrium Medium Armor Plating Hacking Suite > --- WEAPON (4) ------- Quantum Rifle Heavy Pick > --- INVENTORY (25) --- Advanced Cryofiber Web Advanced Heat Sink Advanced Cooling System Matter Compressor (250) Improved Trap Scanner Advanced Trap Scanner Improved Melee Analysis Suite Advanced Particle Charger Improved Kinecellerator Launcher Loader Quantum Capacitor Centrium Medium Armor Plating Component Analysis Suite A0-MCA's Component Scanner Railgun Railgun Heavy Shock Bomb Launcher Long-range Missile Launcher Long-range Missile Launcher Advanced Datajack Improved Plasma Cutter Peak State ------------ > --- POWER ------------ Quantum Reactor > --- PROPULSION ------- Overtuned Huge Scrapsphere Overtuned Huge Scrapsphere Overtuned Huge Scrapsphere > --- UTILITY ---------- Scrap Suit Advanced Heat Sink Huge Storage Unit Advanced Trap Scanner Advanced Sensor Array Advanced Particle Charger System Shield > --- WEAPON ----------- Heavy Laser Quantum Rifle Railgun Long-range Missile Launcher > --- INVENTORY -------- Advanced Heat Sink Advanced Cooling System Matter Compressor Improved Trap Scanner Melee Analysis Suite Improved Melee Analysis Suite Improved Kinecellerator Launcher Loader Quantum Capacitor Centrium Medium Armor Plating Centrium Medium Armor Plating Component Analysis Suite A0-MCA's Component Scanner Quantum Rifle Railgun Heavy Flak Cannon Heavy Shock Bomb Launcher Long-range Missile Launcher Advanced Datajack Improved Plasma Cutter Great Maul Heavy Pick [Rating: 119] Favorites ----------- Power Meta Core Engine Ion Engine Power Core Meta Core Reactor Quantum Reactor Propulsion Overtuned Huge Scrapsphere Treads Light Treads Leg Improved Carbon-fiber Leg Wheel Overtuned Huge Scrapsphere Flight Unit VTOL Module Utility Scrap Suit Device Scrap Suit Storage Huge Storage Unit Processor Advanced Targeting Computer Hackware System Shield Protection Improved Utility Shielding Weapon Heavy Pick Energy Gun Heavy Laser Energy Cannon Cooled Plasma Cannon Ballistic Gun Heavy Assault Rifle Ballistic Cannon Heavy Flak Cannon Launcher Grenade Launcher Special Weapon Improved Plasma Cutter Impact Weapon Great Maul Slashing Weapon Ripper Piercing Weapon Heavy Pick Build | -11 -10 -10 -8 -8 -6 -6 -6 -6 -6 -5 -5 -5 -5 -5 -4 ------- Run | Yrd Mat Sub Rec Scr Fac Was Fac Low Low Fac Ext Cet Arc Hub Fac Slots Evolved 12 | . . . . . 8 . . . . 2 . . . . 2 Power . | . . . . . . . . . . . . . . . . Propulsion 4 | . . . . . 2 . . . . . . . . . 2 Utility 6 | . . . . . 5 . . . . 1 . . . . . Weapon 2 | . . . . . 1 . . . . 1 . . . . . Parts Attached 128 | 6 7 14 . 3 10 4 19 21 . 10 13 2 1 2 16 Power 12 | 1 1 2 . . . . . 1 . . 3 . . 1 3 Engine 7 | 1 1 1 . . . . . . . . 3 . . 1 . Core 2 | . . 1 . . . . . 1 . . . . . . . Reactor 3 | . . . . . . . . . . . . . . . 3 Propulsion 20 | 2 2 2 . 1 1 1 1 8 . . . 1 . . 1 Treads 2 | 2 . . . . . . . . . . . . . . . Leg 2 | . . . . . . . 1 1 . . . . . . . Wheel 12 | . 2 2 . 1 1 1 . 3 . . . 1 . . 1 Hover . | . . . . . . . . . . . . . . . . Flight 4 | . . . . . . . . 4 . . . . . . . Utility 56 | 1 2 3 . 2 6 3 10 8 . 6 4 1 1 . 9 Device 27 | . . 1 . 1 2 3 5 2 . 3 3 1 1 . 5 Storage 5 | 1 . . . 1 . . 1 1 . 1 . . . . . Processor 5 | . . . . . 3 . . 1 . . . . . . 1 Hackware 8 | . . . . . 1 . 2 1 . 2 . . . . 2 Protection 11 | . 2 2 . . . . 2 3 . . 1 . . . 1 Artifact . | . . . . . . . . . . . . . . . . Weapon 40 | 2 2 7 . . 3 . 8 4 . 4 6 . . 1 3 Energy Gun 10 | . . 1 . . 2 . 2 1 . 1 1 . . 1 1 Energy Cannon 8 | . . . . . . . 4 2 . 1 1 . . . . Ballistic Gun 10 | 2 2 2 . . . . 1 1 . 1 . . . . 1 Ballistic Cannon 6 | . . 1 . . 1 . . . . 1 3 . . . . Launcher 2 | . . 1 . . . . . . . . . . . . 1 Special Weapon 2 | . . 1 . . . . . . . . 1 . . . . Impact Weapon . | . . . . . . . . . . . . . . . . Slashing Weapon 1 | . . 1 . . . . . . . . . . . . . Piercing Weapon 1 | . . . . . . . 1 . . . . . . . . Special Melee Weapon . | . . . . . . . . . . . . . . . . Unidentified Prototypes 7 | . . 1 . . . . 2 1 . . . . . . 3 Parts Lost 76 | . 2 8 . . 1 4 10 17 . 5 12 . . 2 15 Power 10 | . 1 1 . . . . . 1 . . 3 . . 1 3 Propulsion 11 | . . 2 . . . . 1 4 . . 1 . . . 3 Utility 25 | . 1 2 . . . 3 3 5 . 2 3 . . . 6 Weapon 30 | . . 3 . . 1 1 6 7 . 3 5 . . 1 3 Highest Loss Streak 12 | . 2 3 . . 1 2 3 12 . 3 6 . . 1 6 To Critical Strikes 6 | . . 1 . . . 1 . 1 . . 1 . . . 2 Average Backups 13 | 2 6 6 5 17 16 6 7 8 12 18 17 19 22 22 22 Power 1 | . . . . . 1 . . 1 2 3 1 1 2 2 . Propulsion 1 | 1 2 1 1 1 2 . . . 1 2 3 2 2 2 . Utility 6 | . . . . 7 7 3 4 5 7 6 8 12 12 12 14 Weapon 3 | . 2 4 4 5 2 . 1 1 1 5 3 1 3 4 5 Tool/Special . | . . . . . . . . . . . . . . . . Unused Backups 61 | . 3 2 . 16 . 10 3 4 . 3 . . 1 . 19 Power 2 | . . . . . . 1 . 1 . . . . . . . Propulsion 7 | . 2 . . 1 . 2 1 . . . . . . . 1 Utility 32 | . . 1 . 8 . 4 2 3 . 2 . . . . 12 Weapon 17 | . 1 1 . 7 . 2 . . . 1 . . . . 5 Tool/Special 3 | . . . . . . 1 . . . . . . 1 . 1 Average Slot Usage (%) 70 | . 96 81 60 66 69 61 69 51 65 77 67 81 82 80 73 Engine 2 | . 13 7 . . . . . . . . 4 5 5 4 1 Core 4 | . . 3 10 10 5 5 5 3 6 5 . . . . . Wheel 14 | . 19 23 20 20 15 13 11 4 13 11 10 11 11 11 14 Device 8 | . . . . 6 9 13 12 5 6 14 6 16 17 17 16 Storage 6 | . 14 8 . 9 5 1 4 3 6 5 5 5 5 5 5 Processor 1 | . . . . . 11 9 . 2 6 3 . . . . 3 Hackware 5 | . . . . . 4 5 10 2 6 11 15 11 11 11 7 Protection 4 | . 11 11 10 . . . 5 8 . . . 5 5 5 . Energy Gun 2 | . . 1 . . 9 6 4 . . 2 . 5 5 8 9 Energy Cannon 1 | . . . . . . . 5 5 . 2 . . . . . Ballistic Gun 4 | . 28 9 . . . . . 3 . 7 6 . . . 3 Ballistic Cannon 2 | . . 1 . . 3 5 1 . 5 2 5 10 11 6 . Launcher 3 | . . 6 10 10 1 . . . . . . . . . 2 Slashing Weapon 2 | . . 6 10 10 . . . . . . . . . . . Piercing Weapon 1 | . . . . . . . 1 2 6 2 5 5 5 5 2 Peak Build Rating 119 | 6 13 27 27 37 72 78 75 81 65 90 85 94 97 99 119 Average Rating 57 | 4 11 18 26 31 69 69 69 56 63 82 78 93 96 96 109 On Entrance 55 | . 6 13 27 27 37 72 67 58 59 65 83 76 94 97 99 Naked Turns . | . . . . . . . . . . . . . . . . Heaviest Build 138 | 12 23 30 30 53 66 66 52 77 49 118 118 129 129 129 138 Greatest Support 60 | 40 40 24 24 24 44 44 28 40 40 40 40 40 40 40 60 Greatest Overweight (x) 25 | 1 . 1 1 2 2 1 1 25 1 2 5 3 3 3 5 Average Overweight (x) 1 | . . . 1 1 1 . . 2 1 1 2 3 3 2 2 Largest Inventory Capacity 25 | 8 8 8 5 20 20 20 15 15 15 25 25 25 25 25 25 Average Capacity 16 | 7 8 6 5 19 20 7 13 11 15 22 25 25 25 25 25 Most Carried 25 | 4 8 8 5 20 20 20 15 15 15 25 23 22 25 25 25 Average Carried 15 | 2 6 6 4 18 18 7 8 9 14 21 21 21 24 24 24 Final Capacity 25 | 8 8 5 5 20 20 5 15 15 15 25 25 25 25 25 25 Final Carried 25 | 4 7 5 5 20 20 5 12 13 15 23 22 22 25 23 23 Class Distribution -------------------- 43% | Mutant 21% | Scavenger-Scrapper 16% | Hacker-Scrapper 5% | Tank 3% | Scavenger-Mutant 3% | Scrapper Dominant Class ---------------- Mutant | -10/Materials Mutant | -10/Subcaves Mutant | -8/Recycling Mutant | -8/Scraptown Gunner | -6/Factory Scrapper | -6/Waste Hacker-Scrapper | -6/Factory Tank | -6/Lower Caves Scavenger-Scrapper | -6/Lower Caves Scavenger-Scrapper | -5/Factory Hacker-Scrapper | -5/Extension Scavenger-Scrapper | -5/Cetus Scavenger-Scrapper | -5/Archives Scavenger-Scrapper | -5/Hub_04(d) Scavenger-Scrapper | -4/Factory Resources | -11 -10 -10 -8 -8 -6 -6 -6 -6 -6 -5 -5 -5 -5 -5 -4 ----------- Run | Yrd Mat Sub Rec Scr Fac Was Fac Low Low Fac Ext Cet Arc Hub Fac Matter Collected 4496 | 221 211 501 . 309 150 15 307 1233 15 135 451 110 172 161 505 Remotely . | . . . . . . . . . . . . . . . . Salvage Created 3923 | . 260 459 . . 191 . 474 528 51 412 520 82 252 112 582 Parts 207 | . 13 50 . . 11 . 32 19 2 18 17 2 7 2 34 Haulers Intercepted 2 | . . . . . . . 1 . . 1 . . . . . Recyclers Shooed 2 | . . . . . . . . . . 2 . . . . . Parts Field Recycled . | . . . . . . . . . . . . . . . . Retrieved Matter . | . . . . . . . . . . . . . . . . Parts Self-Destructed 64 | . . 21 . . . . . 24 19 . . . . . . Prevented 2 | . . . . . . . . 2 . . . . . . . Kills | -11 -10 -10 -8 -8 -6 -6 -6 -6 -6 -5 -5 -5 -5 -5 -4 ------- Run | Yrd Mat Sub Rec Scr Fac Was Fac Low Low Fac Ext Cet Arc Hub Fac Combat Hostiles Destroyed 82 | . 7 19 . . 4 . 11 9 1 5 9 2 3 2 10 Melee 7 | . . 2 . . . . 1 2 1 . . . . . 1 Guns 31 | . 7 6 . . 2 . 1 1 . 4 3 1 . 1 5 Cannons 26 | . . . . . . . 8 6 . 1 6 1 3 1 . AOE 14 | . . 11 . . . . . . . . . . . . 3 Classes Destroyed 11 | . 4 1 . . 4 . 2 . . . . . . . . Worker 4 | . 1 . . . . . 1 . . . . . . . 2 Builder 2 | . . . . . 1 . . . . . . . . . 1 Hauler 2 | . . . . . . . 1 . . 1 . . . . . Operator 2 | . 1 . . . . . . . . . 1 . . . . Swarmer 17 | . 3 7 . . . . 3 . . . . . . . 4 Cutter 3 | . . . . . . . 3 . . . . . . . . Grunt 18 | . 4 . . . . . . 7 1 1 3 . . 1 1 Sentry 18 | . . . . . 1 . 4 . . 1 5 . 3 1 3 Hunter 8 | . . . . . 2 . . 2 . 3 1 . . . . Programmer 5 | . . . . . 1 . 1 . . . . . . . 3 Cetus Guard 2 | . . . . . . . . . . . . 2 . . . Subdweller 12 | . . 12 . . . . . . . . . . . . . Best Kill Streak 4 | . 4 4 . . 2 . 3 3 1 3 2 2 2 1 3 Combat Bots Only 4 | . 3 4 . . 1 . 3 3 1 3 2 2 2 1 3 Max Kills in Single Turn 4 | . 1 4 . . 1 . 1 1 1 1 1 1 1 1 4 Gunslinging . | . . . . . . . . . . . . . . . . Exploded 4 | . . 4 . . . . . . . . . . . . 3 Melee 1 | . . 1 . . . . 1 1 1 . . . . . 1 Uniques/NPCs Destroyed . | . . . . . . . . . . . . . . . . Combat | -11 -10 -10 -8 -8 -6 -6 -6 -6 -6 -5 -5 -5 -5 -5 -4 -------- Run | Yrd Mat Sub Rec Scr Fac Was Fac Low Low Fac Ext Cet Arc Hub Fac Hostile Shots Fired 1149 | . 52 98 . . 33 2 311 196 7 81 151 7 8 32 171 Missed 349 | . 7 30 . . 8 . 113 54 1 22 47 2 2 9 54 Hits 800 | . 45 68 . . 25 2 198 142 6 59 104 5 6 23 117 Melee 4 | . . . . . . 2 2 . . . . . . . . Projectile 796 | . 45 68 . . 25 . 196 142 6 59 104 5 6 23 117 AOE 10 | . . 7 . . . . 3 . . . . . . . . Critical Strikes 22 | . 1 3 . . . 1 . 6 1 1 2 1 . . 6 Part Disruptions 2 | . . . . . . . 1 . . . . . . . 1 Actively Blocked 1 | . . . . . . . 1 . . . . . . . . Damage Taken 14341 | . 497 1314 . . 329 249 2039 2628 115 1343 2198 216 154 460 2799 Core 1903 | . 71 121 . . 29 . 248 428 25 199 291 . 43 63 385 Absorbed by Shields 84 | . . . . . . . . . . . 46 38 . . . Redirected to Shielding 223 | . . . . . . . 118 105 . . . . . . . Ignored by Resistances 47 | . . 47 . . . . . . . . . . . . . Regen/Repaired (Parts) 111 | . . . . . 3 . 50 . . 2 20 . . . 36 Core Remaining (%) 44 | 100 . . . 23 . . . . 14 . . . . 40 . Volleys Fired 259 | . 33 44 . . 11 6 32 34 . 24 27 6 4 9 29 Largest 4 | . 2 2 . . 3 1 3 3 . 4 3 3 3 3 3 Hottest 223 | . 46 133 . . 217 100 206 183 . 172 157 157 157 207 223 Shots Fired 588 | . 66 78 . . 26 6 79 65 . 63 75 18 12 23 77 Gun 390 | . 66 58 . . 20 6 39 22 . 47 32 6 4 15 75 Cannon 175 | . . 1 . . 6 . 40 43 . 16 41 12 8 8 . Launcher 19 | . . 17 . . . . . . . . . . . . 2 Special 4 | . . 2 . . . . . . . . 2 . . . . Kinetic 333 | . 66 54 . . 6 . 21 20 . 47 67 12 8 8 24 Thermal 217 | . . 7 . . 20 6 44 40 . 16 8 6 4 15 51 Explosive 19 | . . 17 . . . . . . . . . . . . 2 Electromagnetic 19 | . . . . . . . 14 5 . . . . . . . Robot Hit Streak 18 | . 18 7 . . 15 . 10 7 . 8 7 7 7 3 12 Robot Miss Streak 14 | . 4 6 . . 2 . 7 3 . 10 14 4 3 13 4 Penetration Max 1 | . . . . . . . . . . 1 1 . . . 1 Secondary Targets 3 | . 1 1 . . . . . . . . . . . . 1 Max Gunslinging Chain 1 | . 1 1 . . . . . . . . . . . . 1 Shots Hit Robots 407 | . 46 49 . . 20 . 58 45 3 32 53 13 9 11 68 Core Hits 244 | . 12 28 . . 18 . 31 18 1 17 57 18 11 8 25 Critical Kills 5 | . . . . . . . 1 . . 2 2 . . . . Critical Parts Destroyed 6 | . 1 . . . . . . 1 . 3 1 . . . . Critical Strikes 21 | . 1 . . . 1 . 5 2 2 5 3 . . . 2 Burn 3 | . . . . . 1 . 2 . . . . . . . . Destroy 10 | . 1 . . . . . 1 1 . 4 3 . . . . Smash 1 | . . . . . . . . . . 1 . . . . . Impale 7 | . . . . . . . 2 1 2 . . . . . 2 Melee Attacks 85 | . . 15 . . . . 16 5 5 5 8 . . . 31 Impact 6 | . . . . . . . . . 2 4 . . . . . Slashing 15 | . . 15 . . . . . . . . . . . . . Piercing 64 | . . . . . . . 16 5 3 1 8 . . . 31 Sneak Attacks 5 | . . . . . . . 3 . . . 2 . . . . Combat Hostiles . | . . . . . . . . . . . . . . . . Follow-up Attacks 2 | . . . . . . . . . 2 . . . . . . Damage Inflicted 11449 | . 772 1510 . . 537 . 1560 1265 123 914 1363 464 220 340 2381 Guns 5291 | . 772 444 . . 450 . 514 255 . 571 521 59 58 169 1478 Cannons 3505 | . . 21 . . 87 . 768 879 . 270 742 405 162 171 . Explosions 1216 | . . 953 . . . . . . . . . . . . 263 Melee 1415 | . . 70 . . . . 278 131 123 73 100 . . . 640 Ramming . | . . . . . . . . . . . . . . . . Kinetic 5144 | . 772 419 . . 87 . 431 229 . 672 1192 405 162 171 604 Thermal 3287 | . . 68 . . 450 . 570 799 . 169 71 59 58 169 874 Explosive 1216 | . . 953 . . . . . . . . . . . . 263 Electromagnetic 387 | . . . . . . . 281 106 . . . . . . . Impact 127 | . . . . . . . . . 54 73 . . . . . Slashing 70 | . . 70 . . . . . . . . . . . . . Piercing 1218 | . . . . . . . 278 131 69 . 100 . . . 640 Highest Corruption 12 | . . . . . . 10 12 7 6 . 1 1 1 5 7 Average Corruption 6 | . . . . . . 8 9 6 6 . 1 1 1 2 4 Corruption Purged 7 | . . . . . . . 6 1 . . . . . . . Corruption Blocked . | . . . . . . . . . . . . . . . . Effects 100 | . . . . . . 2 41 38 4 . . 1 3 2 9 Message Errors 25 | . . . . . . 1 9 10 . . . 1 . . 4 Matter Fused 20 | . . . . . . . 6 7 2 . . . 1 . 4 Heat Flow Errors 12 | . . . . . . . 5 7 . . . . . . . Energy Discharges 10 | . . . . . . 1 6 3 . . . . . . . Parts Rejected 3 | . . . . . . . 1 2 . . . . . . . Parts Fused 2 | . . . . . . . . 1 . . . . . 1 . Data Loss (minor) 14 | . . . . . . . 6 3 2 . . . 2 . 1 Data Loss (major) 4 | . . . . . . . 2 2 . . . . . . . Misfires 2 | . . . . . . . 1 1 . . . . . . . Alerts 2 | . . . . . . . 1 1 . . . . . . . Misdirections 3 | . . . . . . . 3 . . . . . . . . Weapon Failures 3 | . . . . . . . 1 1 . . . . . 1 . Overload Shots . | . . . . . . . . . . . . . . . . Overflow Damage 261 | . . . . . . . 33 41 . 31 21 . . 33 102 Projectiles 31 | . . . . . . . . 26 . . . . . 5 . Explosions 90 | . . . . . . . . . . . . . . 28 62 Melee 140 | . . . . . . . 33 15 . 31 21 . . . 40 Knockbacks 28 | . . . . . 4 . 6 . 1 3 10 . . 4 . Impact 1 | . . . . . . . . . 1 . . . . . . Kinetic 27 | . . . . . 4 . 6 . . 3 10 . . 4 . Secondary . | . . . . . . . . . . . . . . . . Self-Inflicted Damage 127 | . . 23 . . . . . . . . . . . 104 . Shots 3 | . . 2 . . . . . . . . . . . 1 . Rammed . | . . . . . . . . . . . . . . . . Targets Rammed . | . . . . . . . . . . . . . . . . Kicked . | . . . . . . . . . . . . . . . . Crushed . | . . . . . . . . . . . . . . . . Highest Temperature 387 | . 38 . . . 376 216 382 324 . 195 183 45 33 105 387 Average Temperature 74 | . 19 . . . 150 112 110 80 . 39 34 21 14 34 92 Received Heat Transfer 3023 | . 201 114 . . 6 . 429 1014 63 264 384 18 18 45 467 Effects 7 | . . . . . 4 . 2 . . . . . . . 1 Energy Bleed 1 | . . . . . . . 1 . . . . . . . . Interference 4 | . . . . . 3 . . . . . . . . . 1 Matter Decay 1 | . . . . . . . 1 . . . . . . . . Damage (minor) 1 | . . . . . 1 . . . . . . . . . . Siege Activations . | . . . . . . . . . . . . . . . . Martial Activations . | . . . . . . . . . . . . . . . . Shielding Activations . | . . . . . . . . . . . . . . . . Robots Disrupted . | . . . . . . . . . . . . . . . . Combat Hostiles . | . . . . . . . . . . . . . . . . Robots Corrupted 1 | . . . . . . . 1 . . . . . . . . Combat Hostiles 1 | . . . . . . . 1 . . . . . . . . Parts Fried . | . . . . . . . . . . . . . . . . Impact Corruptions 1 | . . . . . . . . . . 1 . . . . . Robots Melted 3 | . . . . . 2 . . . . . . . . . 1 Combat Hostiles 3 | . . . . . 2 . . . . . . . . . 1 Parts Melted 14 | . . . . . 3 . 3 2 . 2 . . 1 . 3 Heat Transferred 5572 | . . 210 . . 950 . 1131 1092 . 350 137 111 111 296 1184 Parts Sabotaged . | . . . . . . . . . . . . . . . . Parts Stolen . | . . . . . . . . . . . . . . . . Parts Stripped . | . . . . . . . . . . . . . . . . Power Chain Reactions . | . . . . . . . . . . . . . . . . Alert | -11 -10 -10 -8 -8 -6 -6 -6 -6 -6 -5 -5 -5 -5 -5 -4 ------- Run | Yrd Mat Sub Rec Scr Fac Was Fac Low Low Fac Ext Cet Arc Hub Fac Maximum Alert Level 4 | . . . . . . . . . . 1 . . . 3 4 Low Security (%) 70 | 100 100 . 100 . 100 100 100 . . 4 100 100 100 33 . Level 1 9 | . . . . . . . . . . 95 . . . 24 4 Level 2 7 | . . . . . . . . . . . . . . 18 36 Level 3 12 | . . . . . . . . . . . . . . 23 58 Level 4 . | . . . . . . . . . . . . . . . . Level 5 . | . . . . . . . . . . . . . . . . High Security . | . . . . . . . . . . . . . . . . Max Security . | . . . . . . . . . . . . . . . . Peak Influence 1103 | . 127 . 95 . 41 1 109 . . 319 153 113 100 849 1103 Initial 410 | . . . 84 . . 1 . . . 94 143 44 . . 410 Average 226 | . 56 . 70 . 11 . 23 . . 265 77 52 49 369 822 Influence Increases 5173 | . 232 270 51 . 127 2 500 362 182 564 498 129 126 911 1219 Destroy 0b10 Robot/C 2460 | . 140 140 . . 80 . 220 280 140 260 320 80 80 240 480 Destroy 0b10 Robot/NC 100 | . 10 . . . 5 . 10 . . 10 10 5 . 5 45 Destroy Leader 414 | . 20 10 . . 40 . 72 30 . 52 22 . . 42 126 Allied During Kill 940 | . . . . . . . . 52 42 82 48 22 40 268 386 Successful Hack 111 | . . . 21 . . . 43 . . 21 . . . . 26 Select Force Hacks 30 | . . . 30 . . . . . . . . . . . . Disable Machine 330 | . . . . . . . . . . 75 30 . . 180 45 Destroy Structure 398 | . 2 . . . 2 2 20 . . 64 8 22 6 176 96 Partial Spotted 15 | . . . . . . . 15 . . . . . . . . Lose Combat Pursuer 375 | . 60 120 . . . . 120 . . . 60 . . . 15 Influence Decreases 4202 | . 143 182 193 35 122 6 436 353 105 421 712 209 126 72 1087 Entered New Map 890 | . . 44 93 35 . 4 1 25 15 57 151 36 . . 429 Time Decay 2225 | . 123 108 100 . 122 . 246 164 90 214 321 133 126 50 428 Lost Part 527 | . 20 30 . . . 1 72 124 . 50 60 . . 20 150 Lost Ally 443 | . . . . . . 1 . 40 . 100 180 40 . 2 80 Purge Threat 117 | . . . . . . . 117 . . . . . . . . Squads Dispatched 33 | . 1 . . . 3 . 9 . . 7 3 . . 2 8 Investigation 8 | . . . . . 2 . 2 . . 2 1 . . . 1 Extermination 4 | . . . . . . . 2 . . 1 . . . . 1 Reinforcement 15 | . 1 . . . 1 . 3 . . 4 2 . . 1 3 Assault . | . . . . . . . . . . . . . . . . Garrison 6 | . . . . . . . 2 . . . . . . 1 3 Intercept . | . . . . . . . . . . . . . . . . Searches Triggered . | . . . . . . . . . . . . . . . . Construction Impeded 5 | . . . . . . . 1 . . 2 1 . . . 1 Haulers Reinforced 1 | . . . . . . . . . . . . . . . 1 Active Scanning Responses . | . . . . . . . . . . . . . . . . Cargo Convoy Interrupts . | . . . . . . . . . . . . . . . . Stealth | -11 -10 -10 -8 -8 -6 -6 -6 -6 -6 -5 -5 -5 -5 -5 -4 --------- Run | Yrd Mat Sub Rec Scr Fac Was Fac Low Low Fac Ext Cet Arc Hub Fac Distress Signals 7 | . 1 . . . . . . . . . 1 1 . 1 3 Communications Jammed . | . . . . . . . . . . . . . . . . Distress Signals . | . . . . . . . . . . . . . . . . Times Spotted 193 | . 13 26 . . 5 6 26 14 7 19 27 5 6 10 29 Peak Tracking Total 7 | . 5 6 . . 2 6 5 6 7 4 6 5 1 5 7 Tactical Retreats 12 | . 1 3 . . . 1 3 . . . 3 . . . 1 Traps | -11 -10 -10 -8 -8 -6 -6 -6 -6 -6 -5 -5 -5 -5 -5 -4 ------- Run | Yrd Mat Sub Rec Scr Fac Was Fac Low Low Fac Ext Cet Arc Hub Fac Traps Triggered 18 | . . 1 . . 2 . 2 . . 2 3 . . . 8 Indirectly . | . . . . . . . . . . . . . . . . Trap Hack Attempts . | . . . . . . . . . . . . . . . . Triggered . | . . . . . . . . . . . . . . . . Disarmed . | . . . . . . . . . . . . . . . . Reprogrammed . | . . . . . . . . . . . . . . . . Reused . | . . . . . . . . . . . . . . . . Traps Extracted . | . . . . . . . . . . . . . . . . Installed . | . . . . . . . . . . . . . . . . Triggered . | . . . . . . . . . . . . . . . . Machines | -11 -10 -10 -8 -8 -6 -6 -6 -6 -6 -5 -5 -5 -5 -5 -4 ---------- Run | Yrd Mat Sub Rec Scr Fac Was Fac Low Low Fac Ext Cet Arc Hub Fac Machines Disabled 26 | . . 2 . . . . . . 2 5 2 . . 12 3 Max in Single Turn 12 | . . 1 . . . . . . . . 1 . . 12 1 Garrison Access 3 | . . . . . 1 . 1 . . . . . . . 1 Network Hub 1 | . . . . . . . . . . . . . . 1 . Machines Repaired . | . . . . . . . . . . . . . . . . Machines Dismantled 2 | . . . . . . . . . . . 2 . . . . Machines Sabotaged . | . . . . . . . . . . . . . . . . Overloaded Fab Kills . | . . . . . . . . . . . . . . . . Hacking | -11 -10 -10 -8 -8 -6 -6 -6 -6 -6 -5 -5 -5 -5 -5 -4 --------- Run | Yrd Mat Sub Rec Scr Fac Was Fac Low Low Fac Ext Cet Arc Hub Fac Machines Accessed 42 | . . . 4 4 5 . 13 . . 8 1 1 . . 6 Terminals 19 | . . . 3 . 1 . 7 . . 5 . 1 . . 2 Fabricators 5 | . . . . . 1 . 2 . . 1 . . . . 1 Repair Stations . | . . . . . . . . . . . . . . . . Recycling Units 9 | . . . 1 . 2 . 2 . . 2 1 . . . 1 Scanalyzers 1 | . . . . . . . 1 . . . . . . . . Garrison Access 4 | . . . . . 1 . 1 . . . . . . . 2 Total Hacks 110 | . . . 11 8 12 . 35 . . 19 1 3 . . 21 Successful 58 | . . . 7 8 4 . 22 . . 9 1 1 . . 6 Failed 52 | . . . 4 . 8 . 13 . . 10 . 2 . . 15 Catastrophic 14 | . . . 1 . 2 . 6 . . . . . . . 5 Database Lockouts . | . . . . . . . . . . . . . . . . Manual 71 | . . . 5 . 10 . 22 . . 15 1 1 . . 17 Terminals 67 | . . . 10 . 3 . 24 . . 14 . 3 . . 13 Fabricators 12 | . . . . . 3 . 4 . . 2 . . . . 3 Repair Stations . | . . . . . . . . . . . . . . . . Recycling Units 14 | . . . 1 . 5 . 2 . . 3 1 . . . 2 Scanalyzers 3 | . . . . . . . 3 . . . . . . . . Garrison Access 6 | . . . . . 1 . 2 . . . . . . . 3 Terminal Hacks 25 | . . . 4 8 . . 8 . . 3 . 1 . . 1 Record 7 | . . . . 7 . . . . . . . . . . . Part Schematic 1 | . . . . . . . 1 . . . . . . . . Robot Schematic 1 | . . . 1 . . . . . . . . . . . . Robot Analysis 2 | . . . 1 . . . 1 . . . . . . . . Open Door 2 | . . . . . . . . . . 1 . 1 . . . Branch Access Points 2 | . . . . . . . 1 . . 1 . . . . . Terminal Index 3 | . . . . . . . 1 . . 1 . . . . 1 Recycling Unit Index 1 | . . . 1 . . . . . . . . . . . . Alert Level 2 | . . . 1 . . . 1 . . . . . . . . Unreport Threat 2 | . . . . . . . 2 . . . . . . . . Recall Reinforcements 1 | . . . . . . . 1 . . . . . . . . Proto ID Catalog 1 | . . . . 1 . . . . . . . . . . . Fabricator Hacks 4 | . . . . . 1 . 1 . . 1 . . . . 1 Network Status 4 | . . . . . 1 . 1 . . 1 . . . . 1 Repair Station Hacks . | . . . . . . . . . . . . . . . . Recycling Unit Hacks . | . . . . . . . . . . . . . . . . Scanalyzer 3 | . . . . . . . 3 . . . . . . . . Insert Component 1 | . . . . . . . 1 . . . . . . . . Analyze 2 | . . . . . . . 2 . . . . . . . . Garrison Access Hacks 3 | . . . . . 1 . 1 . . . . . . . 1 Seal Access 3 | . . . . . 1 . 1 . . . . . . . 1 Unauthorized Hacks 23 | . . . 3 . 2 . 9 . . 5 1 . . . 3 Terminals 12 | . . . 2 . 1 . 5 . . 2 . . . . 2 Botnet 12 | . . . 2 . 1 . 5 . . 2 . . . . 2 Fabricators 3 | . . . . . . . 2 . . 1 . . . . . Fabnet 3 | . . . . . . . 2 . . 1 . . . . . Repair Stations . | . . . . . . . . . . . . . . . . Recycling Units 8 | . . . 1 . 1 . 2 . . 2 1 . . . 1 Tunnel 1 | . . . 1 . . . . . . . . . . . . Fedlink 7 | . . . . . 1 . 2 . . 2 1 . . . 1 Scanalyzers . | . . . . . . . . . . . . . . . . Garrison Access . | . . . . . . . . . . . . . . . . Data Cores Recovered 1 | . 1 . . . . . . . . . . . . . . Used . | . . . . . . . . . . . . . . . . Hacking Detections 28 | . . . 3 . 4 . 8 . . 7 . . . . 6 Full Trace Events . | . . . . . . . . . . . . . . . . Feedback Events . | . . . . . . . . . . . . . . . . Feedback Blocked . | . . . . . . . . . . . . . . . . Robot Schematics Acquired 1 | . . . 1 . . . . . . . . . . . . Robots Built . | . . . . . . . . . . . . . . . . Authchips . | . . . . . . . . . . . . . . . . Time . | . . . . . . . . . . . . . . . . Total Robot Build Rating . | . . . . . . . . . . . . . . . . Part Schematics Acquired 2 | . . . . . . . 2 . . . . . . . . Parts Built . | . . . . . . . . . . . . . . . . Authchips . | . . . . . . . . . . . . . . . . Time . | . . . . . . . . . . . . . . . . Total Part Build Rating . | . . . . . . . . . . . . . . . . Parts Repaired . | . . . . . . . . . . . . . . . . Time . | . . . . . . . . . . . . . . . . Parts Recycled . | . . . . . . . . . . . . . . . . Recycled Matter . | . . . . . . . . . . . . . . . . Retrieved Matter . | . . . . . . . . . . . . . . . . Retrieved Components . | . . . . . . . . . . . . . . . . Parts Scanalyzed 1 | . . . . . . . 1 . . . . . . . . Part Schematics Acquired 1 | . . . . . . . 1 . . . . . . . . Parts Damaged . | . . . . . . . . . . . . . . . . Bothacking | -11 -10 -10 -8 -8 -6 -6 -6 -6 -6 -5 -5 -5 -5 -5 -4 ------------ Run | Yrd Mat Sub Rec Scr Fac Was Fac Low Low Fac Ext Cet Arc Hub Fac Used RIF Installer . | . . . . . . . . . . . . . . . . Robots Hacked 11 | . . . . . . . . . . 3 1 . 2 1 4 Non-combat . | . . . . . . . . . . . . . . . . Combat 11 | . . . . . . . . . . 3 1 . 2 1 4 Robot Hacks Applied . | . . . . . . . . . . . . . . . . Relay Couplers Released . | . . . . . . . . . . . . . . . . Fabnet Peak Effective % 6 | . . . . . . . . . . 6 6 6 6 6 5 Autooverrided 11 | . . . . . . . . . . 3 1 . 2 1 4 Robots Rewired 13 | . . . . . . . . . 2 . 11 . . . . Allies Hacked . | . . . . . . . . . . . . . . . . Hacks Repelled . | . . . . . . . . . . . . . . . . Allies | -11 -10 -10 -8 -8 -6 -6 -6 -6 -6 -5 -5 -5 -5 -5 -4 -------- Run | Yrd Mat Sub Rec Scr Fac Was Fac Low Low Fac Ext Cet Arc Hub Fac Total Allies 38 | . . . . . . 1 . 5 2 3 15 5 2 1 4 Largest Group 8 | . . . . . . 1 . 5 5 7 4 7 8 7 7 Highest-Rated Group 734 | . . . . . . 31 . 238 199 280 235 670 734 521 536 Highest-Rated Ally 159 | . . . . . . 31 . 50 47 54 159 159 159 96 96 Total Orders 9 | . . . . . . 5 . . . . . . 4 . . STAY 3 | . . . . . . 1 . . . . . . 2 . . FOLLOW 2 | . . . . . . . . . . . . . 2 . . EXPLORE 2 | . . . . . . 2 . . . . . . . . . RETURN 2 | . . . . . . 2 . . . . . . . . . Ally Attacks 323 | . . . . . . 10 . 42 15 40 45 15 17 40 99 Total Damage 9940 | . . . . . . 191 . 598 392 1161 1182 826 712 958 3920 Kills 65 | . . . . . . . . 5 6 10 8 3 1 11 21 Allies Corrupted . | . . . . . . . . . . . . . . . . Allies Melted 1 | . . . . . . . . . . . 1 . . . . Intel | -11 -10 -10 -8 -8 -6 -6 -6 -6 -6 -5 -5 -5 -5 -5 -4 ------- Run | Yrd Mat Sub Rec Scr Fac Was Fac Low Low Fac Ext Cet Arc Hub Fac Active Infowar (turns) 2387 | . . . . 1167 64 75 . . . 398 . . . . 683 Sensors 725 | . . . . . . 75 . . . . . . . . 650 IFF 1231 | . . . . 1167 64 . . . . . . . . . . Traps 242 | . . . . . . . . . . . . . . . 242 Seismic 398 | . . . . . . . . . . 398 . . . . . Robot Analysis Total 2 | . . . 1 . . . 1 . . . . . . . . Derelict Logs Recovered 5 | . . 1 . 3 . . . . 1 . . . . . . Drone Launches 3 | . . . . . . 3 . . . . . . . . . Drone Recoveries 1 | . . . . . . 1 . . . . . . . . . Exploration | -11 -10 -10 -8 -8 -6 -6 -6 -6 -6 -5 -5 -5 -5 -5 -4 ------------- Run | Yrd Mat Sub Rec Scr Fac Was Fac Low Low Fac Ext Cet Arc Hub Fac Turns Passed 9784 | 81 411 1238 211 1811 427 93 1034 1284 182 448 815 305 269 117 1058 Spaces Moved 7580 | 45 200 1059 196 1464 378 97 989 709 196 379 632 111 208 71 846 Core 205 | 4 . . . . . . . 201 . . . . . . . Treads 106 | 41 65 . . . . . . . . . . . . . . Legs 62 | . . . . . . . . 62 . . . . . . . Wheels 7197 | . 135 1059 196 1464 378 97 989 436 196 379 632 111 208 71 846 Hover . | . . . . . . . . . . . . . . . . Flight 10 | . . . . . . . . 10 . . . . . . . Fastest Speed 26 | 50 90 90 105 90 96 70 70 26 80 80 90 100 100 90 80 Average Speed 101 | 153 112 97 105 119 96 78 79 138 80 86 92 100 100 98 91 Slowest Speed 1300 | 160 160 105 105 120 120 96 80 1300 80 90 120 100 100 100 120 Overloaded Moves . | . . . . . . . . . . . . . . . . Propulsion Burnouts . | . . . . . . . . . . . . . . . . Robots Hopped . | . . . . . . . . . . . . . . . . Potential Cave-ins 4 | . . . . . . 4 . . . . . . . . . Cave-ins Triggered 2 | . . . . . . 1 1 . . . . . . . . Exploration Rate (%) 46 | 5 41 73 36 87 14 87 36 70 19 12 72 68 79 13 29 Regions Visited 15 Branch Regions 9 Pre-discovered Areas 4 | . . 1 1 1 . . 1 . . . . . . . . Known Exits Taken 4 | . . . . . . . 1 . 1 1 . . . 1 . Unknown Exits Taken 9 | 1 1 1 1 1 . . . 1 . . 1 1 1 . . Scrap Searched 22 | . . 7 . 9 . . . 5 1 . . . . . . Spaces Dug 53 | . . 3 . . 1 6 11 . . 10 3 . . . 19 Terrain Destroyed 335 | . . 61 . . 2 6 20 14 . 17 5 . . 162 48 Melee 25 | . . 3 . . . . 9 . . 3 3 . . . 7 Projectile 67 | . . . . . 2 6 11 14 . 14 2 . . 2 16 AOE 243 | . . 58 . . . . . . . . . . . 160 25 Terrain Rammed . | . . . . . . . . . . . . . . . . Walls Destroyed . | . . . . . . . . . . . . . . . . Machines Disabled . | . . . . . . . . . . . . . . . . Actions | -11 -10 -10 -8 -8 -6 -6 -6 -6 -6 -5 -5 -5 -5 -5 -4 --------- Run | Yrd Mat Sub Rec Scr Fac Was Fac Low Low Fac Ext Cet Arc Hub Fac Total 8955 | 54 322 1159 202 1529 420 109 1136 938 211 454 764 291 261 98 1007 Wait 549 | . 65 2 1 12 14 . 53 127 1 . 5 169 41 17 42 Move 7565 | 44 199 1058 195 1463 378 95 988 708 195 378 631 110 207 70 846 Hop . | . . . . . . . . . . . . . . . . Pick Up 145 | 4 11 9 3 31 7 2 16 22 2 11 9 3 5 . 10 Fast Attach 55 | 6 . 3 . 2 3 2 13 13 . 3 3 . . . 7 Attach 60 | . 3 7 . . 4 1 6 15 . 5 9 2 . 2 6 Detach 9 | . . . . . . . 1 5 . 2 . . . . 1 Swap 37 | . 4 10 . 1 3 1 3 3 . 3 2 1 1 . 5 Drop 68 | . 7 7 3 20 . 1 8 6 . 7 . . 3 . 6 Fire 259 | . 33 44 . . 11 6 32 34 . 24 27 6 4 9 29 Melee 83 | . . 15 . . . . 16 5 3 5 8 . . . 31 Ram . | . . . . . . . . . . . . . . . . Kick . | . . . . . . . . . . . . . . . . Crush . | . . . . . . . . . . . . . . . . Escape Stasis 57 | . . . . . . 1 . . . 16 16 . . . 24 Rewire 48 | . . . . . . . . . 10 . 38 . . . . Trap . | . . . . . . . . . . . . . . . . Miscellaneous 20 | . . 4 . . . . . . . . 16 . . . . Route ------- -11/Scrapyard -10/Materials (discovered 2 exits: [*Mat] / [*Sub]) -10/Subcaves (discovered 2 exits: [*Mat] / *Rec) -8/Recycling -8/Scraptown (discovered 2 exits: *Fac x2) -6/Factory (discovered 2 exits: Fac x2) -6/Waste -6/Factory (discovered 2 exits: *Low x2) -6/Lower Caves -6/Lower Caves -5/Factory (discovered 6 exits: *Fac x2 / *Upp x2 / *Ext x2) -5/Extension (discovered 2 exits: *Fac / *Cet) -5/Cetus -5/Archives (discovered 2 exits: [*Hub x2]) -5/Hub_04(d) -4/Factory (discovered 3 exits: *Res / *Upp x2) History --------- Turn | Location | Event 42 | -11/Scrapyard | Discovered new exit (range 15) 82 | -11/Scrapyard | Entered Materials 291 | -10/Materials | Discovered new exit (range 13) 300 | -10/Materials | Build established: Mutant 484 | -10/Materials | Discovered new exit (range 5) 493 | -10/Materials | Entered Subcaves 574 | -10/Subcaves | A swath of the cavern ceiling suddenly collapsed 685 | -10/Subcaves | Disturbed a concealed Subdweller 735 | -10/Subcaves | Lost 3 parts (1n1u1w) 872 | -10/Subcaves | Shifting Twisted Machinery released Sub. Monowheel 873 | -10/Subcaves | Shifting Twisted Machinery released Sub. Machine Gun 1007 | -10/Subcaves | Shifting Twisted Machinery released Battle Cannon 1105 | -10/Subcaves | Core integrity fell below 50% 1229 | -10/Subcaves | Visited 4L-MR0's lab 1246 | -10/Subcaves | Ambushed by Subdweller buried in earth 1246 | -10/Subcaves | Ambushed by Subdweller buried in earth 1277 | -10/Subcaves | Lost 3 parts (1u2w) 1278 | -10/Subcaves | Found Prototype Power Core 1278 | -10/Subcaves | Identified Meta Core 1279 | -10/Subcaves | Attached Meta Core, gained temporary slots: Propulsion, Utility, Weapon 1637 | -10/Subcaves | Discovered new exit (range 11) 1646 | -10/Subcaves | Learned location of Zion (-6) 1646 | -10/Subcaves | Met a Zionite searching for "candidates" 1691 | -10/Subcaves | Discovered new exit (range 12) 1731 | -10/Subcaves | Entered Recycling 1763 | -8/Recycling | Scanned before Scraplab entrance 1920 | -8/Recycling | Entered Scraplab 1928 | -8/Recycling | Discovered new exit (range 2) 1942 | -8/Recycling | Entered Scraptown 2033 | -8/Scraptown | Heard Great Nut preacher, LISTEN AND RECITE! 2156 | -8/Scraptown | Discovered new exit (range 13) 2212 | -8/Scraptown | Scanned Subdweller tech in exchange for log data 2214 | -8/Scraptown | Learned Research garrison access intel 2215 | -8/Scraptown | Learned location of 2 exits from Factory 2217 | -8/Scraptown | Learned location of Quarantine (-2) 2249 | -8/Scraptown | Visited CPS Storage 2269 | -8/Scraptown | Visited SPCMW 2280 | -8/Scraptown | Visited Comm Corps 2338 | -8/Scraptown | Visited Cyclists 2360 | -8/Scraptown | Visited UFD Registry 2387 | -8/Scraptown | Received an X-ray algorithm 2408 | -8/Scraptown | Visited Fellowship of the Rings 2443 | -8/Scraptown | Visited Bundlers 2738 | -8/Scraptown | Registered with UFD as "Rustflow" 2767 | -8/Scraptown | Visited Science Guys 2824 | -8/Scraptown | Entered Cyclist Reading Room 2920 | -8/Scraptown | Visited Science Testing Area 2939 | -8/Scraptown | Visited LU-1G1's Boring Crew 2957 | -8/Scraptown | Visited Chapter 10 3026 | -8/Scraptown | Delivered Scrap Shield to a Scientist 3158 | -8/Scraptown | Visited Infowarlord's Domain 3166 | -8/Scraptown | Found Exp. Sensor Array 3186 | -8/Scraptown | Visited A0-MCA Data Center 3193 | -8/Scraptown | Given a B rating by A0-MCA 3196 | -8/Scraptown | Found A0-MCA's Component Scanner 3221 | -8/Scraptown | Visited Scrap Suit Storage 3229 | -8/Scraptown | Found Scrap Suit 3238 | -8/Scraptown | Found Scrap Suit 3274 | -8/Scraptown | Visited Scrapoid Pod Storage 3280 | -8/Scraptown | Found Scrapoid Pod 3304 | -8/Scraptown | Visited Modified Component R&D 3407 | -8/Scraptown | Visited Abandonware Association 3420 | -8/Scraptown | Learned abandonware demo "OVRCLOCK.EXE" 3425 | -8/Scraptown | Learned abandonware demo "KABOOM.EXE" 3515 | -8/Scraptown | Discovered new exit (range 5) 3600 | -8/Scraptown | Found Scrap Suit 3673 | -8/Scraptown | Met Optimus 3673 | -8/Scraptown | Accepted into 0bPrime 3753 | -8/Scraptown | Entered Factory 3753 | -6/Factory | Evolved 8 slots: Propulsion x2, Utility x5, Weapon x1 3754 | -6/Factory | Identified exit to Factory 4030 | -6/Factory | Loaded intel: 8 recycling unit locations 4081 | -6/Factory | Ran an X-ray algorithm 4180 | -6/Factory | Sucked down chute 4180 | -6/Factory | Entered Waste 4181 | -6/Waste | Met a frightened Derelict 4192 | -6/Waste | Spotted C-40 Crusher 4195 | -6/Waste | EMP discharged 4198 | -6/Waste | Crushed by Compactor (1 part destroyed, 1 dropped) 4224 | -6/Waste | Spotted C-40 Crusher 4230 | -6/Waste | Spotted C-40 Crusher 4236 | -6/Waste | Spotted C-40 Crusher 4241 | -6/Waste | Crushed by Compactor (1 part destroyed, 1 dropped) 4245 | -6/Waste | Spotted C-40 Crusher 4246 | -6/Waste | Spotted C-40 Crusher 4259 | -6/Waste | Crushed by falling debris 4260 | -6/Waste | System corruption reached 10% 4264 | -6/Waste | Discovered new exit (range 8) 4273 | -6/Waste | Entered Factory 4289 | -6/Factory | Lost 3 allies 4488 | -6/Factory | Garrison activated, responded to threat 4691 | -6/Factory | Lost 3 parts (1u2w) 4736 | -6/Factory | Identified exit to Lower Caves 5096 | -6/Factory | Loaded intel: 8 recycling unit locations 5096 | -6/Factory | Learned location of Protoforge (-2) 5103 | -6/Factory | Build established: Hacker-Scrapper 5118 | -6/Factory | Crushed by falling debris 5273 | -6/Factory | Garrison activated, responded to threat 5307 | -6/Factory | Entered Lower Caves 5309 | -6/Lower Caves | UFD Scientist delivered a prototype 5311 | -6/Lower Caves | Found Prototype Protection 5380 | -6/Lower Caves | Lost 3 parts (1n2u) 5386 | -6/Lower Caves | Identified Enh. Scrap Shield 5641 | -6/Lower Caves | Build established: Tank 5952 | -6/Lower Caves | Attracted the attention of an 0b10 base 6003 | -6/Lower Caves | Core integrity fell below 50% 6068 | -6/Lower Caves | Lost 12 parts (1p3n3u5w) 6211 | -6/Lower Caves | Build established: Mutant 6305 | -6/Lower Caves | Scrapoid Pod released 06L05-D (x5) 6338 | -6/Lower Caves | Core integrity fell below 20% 6363 | -6/Lower Caves | Found Scrap Suit 6545 | -6/Lower Caves | Found Scrap Suit 6578 | -6/Lower Caves | Discovered new exit (range 12) 6591 | -6/Lower Caves | Entered another Lower Caves area 6591 | -6/Lower Caves | Accompanied by 3 allies 6644 | -6/Lower Caves | Learned 4 Factory zone layouts 6660 | -6/Lower Caves | Attracted the attention of an 0b10 outpost 6763 | -6/Lower Caves | Discovered exit to Factory (range 9) 6773 | -6/Lower Caves | Entered Factory 6773 | -5/Factory | Accompanied by 5 allies 6773 | -5/Factory | Evolved 2 slots: Utility x1, Weapon x1 6774 | -5/Factory | Identified exit to Factory 6817 | -5/Factory | Build established: Scavenger-Scrapper 6820 | -5/Factory | Identified exit to Upper Caves 6820 | -5/Factory | Identified exit to Extension 6897 | -5/Factory | Loaded intel: 8 recycling unit locations 6915 | -5/Factory | Found Scrap Suit 7040 | -5/Factory | Found Scrap Suit 7160 | -5/Factory | Discovered exit to Factory (range 15) 7221 | -5/Factory | Entered Extension 7233 | -5/Extension | Lost 3 parts (1u2w) 7264 | -5/Extension | Loaded intel: 1 recycling unit location 7319 | -5/Extension | Build established: Hacker-Scrapper 7349 | -5/Extension | Local machine network offline 7627 | -5/Extension | Spotted B-75 Beast 7722 | -5/Extension | Spotted B-75 Beast 7831 | -5/Extension | Lost 6 parts (1p2u3w) 7846 | -5/Extension | Rescued a captive Derelict 7846 | -5/Extension | Rescued a captive Derelict 7960 | -5/Extension | Rescued A7 8015 | -5/Extension | Discovered exit to Factory (range 10) 8016 | -5/Extension | Discovered new exit (range 6) 8036 | -5/Extension | Entered Cetus 8036 | -5/Cetus | Accompanied by 4 allies (A7) 8041 | -5/Cetus | Acquired a Cetus Manufacturing Module code from A7 8053 | -5/Cetus | Spotted Cetus Guard 8053 | -5/Cetus | Spotted Cetus Guard 8055 | -5/Cetus | Spotted Cetus Guard 8056 | -5/Cetus | Spotted Cetus Guard 8065 | -5/Cetus | Allies destroyed Cetus Guard 8067 | -5/Cetus | Destroyed Cetus Guard 8070 | -5/Cetus | Destroyed Cetus Guard 8076 | -5/Cetus | Allies destroyed Cetus Guard 8135 | -5/Cetus | Escorted A7 to Cetus Mainframe 8142 | -5/Cetus | Started Cetus Manufacturing Module 8154 | -5/Cetus | Discovered new exit (range 16) 8167 | -5/Cetus | Manufactured an Enhanced Grunt 8192 | -5/Cetus | Manufactured an Enhanced Grunt 8217 | -5/Cetus | Manufactured an Enhanced Grunt 8242 | -5/Cetus | Manufactured an Enhanced Grunt 8267 | -5/Cetus | Manufactured an Enhanced Grunt 8341 | -5/Cetus | Entered Archives 8341 | -5/Archives | Accompanied by 7 allies (A7) 8344 | -5/Archives | Build established: Scavenger-Scrapper 8346 | -5/Archives | Received a hacking code to weaken MAIN.C 8358 | -5/Archives | Core integrity fell below 50% 8397 | -5/Archives | Unable to access archive contents 8397 | -5/Archives | Unable to access archive contents 8407 | -5/Archives | Discovered new exit (range 14) 8424 | -5/Archives | Discovered new exit (range 15) 8482 | -5/Archives | Unable to access archive contents 8610 | -5/Archives | Entered Hub_04(d) 8610 | -5/Hub_04(d) | Accompanied by 6 allies 8634 | -5/Hub_04(d) | Garrison activated, responded to threat 8675 | -5/Hub_04(d) | Discovered exit to Factory (range 7) 8700 | -5/Hub_04(d) | Network Hub disabled 8727 | -5/Hub_04(d) | Entered Factory 8727 | -4/Factory | Accompanied by 6 allies 8727 | -4/Factory | Evolved 2 slots: Propulsion x2 8737 | -4/Factory | Found Quantum Capacitor 8850 | -4/Factory | Loaded intel: 8 recycling unit locations 8930 | -4/Factory | Discovered new exit (range 16) 8976 | -4/Factory | Lost 4 parts (1p3u) 8977 | -4/Factory | Found Launcher Loader 9093 | -4/Factory | Garrison activated, responded to threat 9106 | -4/Factory | Discovered new exit (range 6) 9128 | -4/Factory | Identified exit to Upper Caves 9270 | -4/Factory | Local machine network offline 9302 | -4/Factory | Discovered new exit (range 16) 9316 | -4/Factory | Identified exit to Research 9704 | -4/Factory | Lost 6 parts (1p1n2u2w) 9785 | -4/Factory | Self-destructed Last Messages --------------- 09741_ QGKHLW#O8T/DJ:EFNSTQ4SGLZ #1 09752_ W-44 Eye sends out distress signal. 09752_ Ovr. Huge Scrapsphere suddenly begins malfunctioning. 09758_ Ovr. Huge Scrapsphere recovered from malfunction. 09773_ Critical hit (Burn: +50). 09773_ Slug penetrates Wall. 09778_ System corrupted: Matter fused (-10). 09780_ Slug penetrates Wall. 09780_ Penetrated by Slug. 09782_ Ovr. Huge Scrapsphere destroyed. 09783_ Slug penetrates Wall. 09783_ A-15 Conveyor calls for reinforcements. 09783_ ALERT: Hostile activity reported, dispatching reinforcements to area. 09785_ Wall collapses. 09785_ Penetrated by Slug. 09785_ Critical hit (Destroy). 09785_ Ovr. Huge Scrapsphere destroyed. Map ----- +----------------------------------------------------+ | ?????????????????????????????????????????????????? | | ?????????????????????????????????????????????????? | | ?????????????????????????????????????????????????? | | ???????????????????###########???????????????????? | | ???????????????????# #???????????????????? | | ???????????????????# ! #???????????????????? | | ??????????? + #???????????????????? | | ??????????? ????# """ """ #???????????????????? | | ??????????? ???# """ """ ######### #?????????? | | ???????????"" ???# """ """ " ???? | | ???????????"" ??# ######### #???? | | ????????? """ ?# h *#???????????????????? | | ???????? #####h##;###???????????????????? | | ???????? ! #?????????????????????? | | ?????????????"Y" #?????????????????????? | | ???????# " " #?????????????????????? | | ???????# ! g #?????????????????????? | | ???????# ##+########???????????? | | ???????? ######### u ????????? | | ?????????? ??# = #u g #??????????? | | ?????????????#! #u g #??????????? | | ?????????????# u A #??????????? | | ?????????????# # #### #??????????? | | ?????????????# # ##??? #??????????? | | ?????????????# ?# ;#????? #??????????? | | ?????????????# ?# @ #???????#??????????? | | ?????????????# ??# #??????????????????? | | ?????????????# ??# #??????????????????? | | ?????????????# ???# ####??????????????????? | | ?????????????# ???# #?????????????????????? | | ?????????????######### #?????????????????????? | | ??????? #?????????????????????? | | ??????????????##########+#######?????????????????? | | ?????????????????## % #?????????????????? | | ?????????????????## ! #?????????????????? | | ?????????????????## """"""" #?????????????????? | | ?????????????????# """"""" ! #?????????????????? | | ?????????????????## """""" #?????????????????? | | ??????????????????# """""" #?????????????????? | | ??????????????????# #?????????????????? | | ??????????????????# #?????????????????? | | ??????????????????# = ! #?????????????????? | | ??????????????????# #?????????????????? | | ??????????????????# ""T"" #?????????????????? | | ??????????????????# """"" #?????????????????? | | ??????????????????##"###########?????????????????? | | ???????????????????###???????????????????????????? | | ????????############"#???????????????????????????? | | ????????# #???????????????????????????? | | ????????# ####????????????????????????? | +----------------------------------------------------+ Best States ------------- Heat Dissipation 62 Energy Generation 25 Energy Capacity 350 Matter Stores 300 Matter Capacity 300 Sight Range 16 Robot Scan Range 20 Terrain Scan Density 10 EM Shielding 2 Armor Coverage 1400 Resistance: KI 10 Power Shielding 33 Utility Shielding 66 Phase Shifting 5 Evasion (%) 64 Targeting Accuracy 24 Target Analysis 6 Recoil Reduction 2 Particle Charging 25 Kinecelleration 40 Offensive Hacking 37 Defensive Hacking 10 Item Schematics ----------------- Imp. Heavy Treads | -6/Factory | Scanalyzed Thunder Leg | -6/Factory | Hacked Robot Schematics ------------------ M-28 Smith | -8/Recycling | Hacked Fabricated ------------ Nothing Repaired ---------- Nothing Alien Tech Used ----------------- None Achievements -------------- None Challenges ------------ None Game ------ Seed ReflectiveSurgeAirjet Manual? 0 Play Time 03:52:31 Cumulative 192.3 hours Start 2025.05.10 @ 13:25:15 End 2025.05.12 @ 18:10:34 Sessions 8 Manual Loads 0 Difficulty Rogue Special Mode None Game No. 185 Rogue 185 Adventurer 0 Explorer 0 Win Type - Total 1 Types 1/0/0/0/0/0/0/0/0/0 Lore% 68 Gallery% 55 Achievement% 48 Wizard Run 0 Options --------- Layout 1 ASCII 0 Keyboard 0 Movement Mouse Keybinds 0 Fullscreen 1 Font 24/Smallcaps Map View 50x35 Zoom Use 0% Tactical HUD 1 Map Filters NONE Filters NONE Steam 1 RUN: ced18e90-058b-4201-a9cf-c6e79b396ca9